bitfinex/quotes_ETHUSD_20241217
["timestamp","ask_amount","ask_price","bid_price","bid_amount"]
[1734436677348,5.15,3993.8,3993.1,0.7862]
[1734436677532,5.15,3993.8,3993.3,2.34398981]
[1734436677732,5.15,3993.8,3993.4,3.7862]
[1734436678866,0.7877,3994.6,3993.4,3.7862]
[1734436679217,0.7877,3994.6,3993.4,3.0]
[1734436679781,0.7877,3994.6,3993.5,0.7862]
[1734436682165,0.8118,3994.4,3992.9,0.8011]
[1734436683071,0.8118,3994.4,3993.2,3.8011]
[1734436683833,0.8118,3994.9,3993.6,0.8011]
[1734436684043,0.8118,3994.9,3993.6,3.8011]
[1734436684676,0.8118,3994.9,3993.9,2.34398981]
[1734436684885,0.8118,3994.9,3993.7,3.0]
[1734436684886,0.8118,3995.3,3994.4,0.8011]
[1734436685089,0.8118,3995.3,3994.4,3.8011]
[1734436686496,0.8118,3995.7,3994.4,0.8011]
[1734436686637,0.8118,3995.7,3994.5,0.8011]
[1734436691991,0.8118,3995.7,3994.4,3.0]
[1734436691992,0.8118,3996.0,3994.8,3.8011]
[1734436694966,0.8118,3996.0,3994.8,0.8011]
[1734436697261,0.8118,3996.0,3994.8,3.8011]
[1734436699317,1.40798,3996.0,3994.8,3.8011]
[1734436699905,0.7572,3995.8,3994.8,0.8011]
[1734436701909,0.7572,3995.1,3994.2,0.7731]
[1734436702207,2.34398981,3995.2,3992.7,0.7731]
[1734436702208,0.7572,3994.9,3992.7,0.7731]
[1734436702428,0.7572,3994.5,3992.7,0.7731]
[1734436702639,0.55,3994.4,3992.7,0.7731]
[1734436702801,0.7572,3994.3,3992.7,0.7731]
[1734436703002,2.63436,3994.2,3992.7,0.7731]
[1734436704136,5.15,3994.1,3992.7,0.7731]
[1734436704335,0.8182,3993.9,3992.7,0.7731]
[1734436707623,5.15,3994.1,3992.7,3.0]
[1734436707824,5.15,3994.1,3992.8,0.7601]
[1734436708063,0.609892,3994.0,3992.8,0.7601]
[1734436708432,2.50385,3993.9,3992.8,0.7601]
[1734436708631,0.609892,3994.0,3992.8,0.7601]
[1734436709462,0.609892,3994.0,3993.0,2.34398981]
[1734436709729,5.15,3994.1,3993.0,2.34398981]
[1734436709730,5.15,3994.1,3993.1,3.7601]
[1734436711263,5.15,3994.1,3993.2,0.7601]
[1734436711568,5.9682,3994.9,3993.5,3.7601]
[1734436711865,8.4714,3994.9,3993.5,3.7601]
[1734436712068,0.8781519,3994.8,3993.5,3.7601]
[1734436712227,3.3814219,3994.8,3993.5,3.7601]
[1734436712622,3.3814219,3994.8,3993.5,0.7601]
[1734436713634,0.8781519,3994.8,3993.5,0.7601]
[1734436713874,0.8781519,3994.8,3993.6,0.7601]
[1734436714030,0.31011898,3995.0,3993.6,0.7601]
[1734436715671,5.15,3995.1,3993.6,0.7601]
[1734436716298,0.8182,3994.9,3993.6,0.7601]
[1734436716497,2.50345,3994.5,3993.6,0.7601]
[1734436717781,2.50332,3994.7,3993.6,0.7601]
[1734436718503,5.15,3994.8,3993.6,0.7601]
[1734436718504,2.50343,3994.6,3993.6,0.7601]
[1734436718714,0.765343,3994.5,3993.6,0.7601]
[1734436719659,3.268783,3994.5,3993.6,0.7601]
[1734436720585,2.50358,3994.3,3993.6,0.7601]
[1734436720788,0.765343,3994.5,3993.6,0.7601]
[1734436721307,7.65331,3994.7,3993.6,0.7601]
[1734436722211,5.15,3994.7,3993.6,0.7601]
[1734436723897,5.9682,3994.9,3993.6,0.7601]
[1734436724102,5.15,3994.9,3993.6,0.7601]
[1734436725692,5.15,3994.9,3993.8,2.34398981]
[1734436725997,5.15,3994.9,3994.0,0.8183]
[1734436726224,5.915302,3994.9,3994.0,0.8183]
[1734436726809,1.03856546,3995.3,3993.9,3.0]
[1734436726997,1.03856546,3995.9,3994.9,0.8183]
[1734436727197,1.83666546,3996.1,3994.9,0.8183]
[1734436727532,5.9481,3996.1,3994.9,0.8183]
[1734436727734,5.15,3996.1,3994.9,0.8183]
[1734436727919,5.84866655,3996.1,3995.0,0.8183]
[1734436729898,8.35115655,3996.1,3995.0,0.8183]
[1734436730093,5.84866655,3996.1,3995.0,0.8183]
[1734436731773,6.18856546,3996.6,3995.2,5.34398981]
[1734436731964,0.7981,3996.7,3995.3,0.8183]
[1734436732819,2.50243,3996.2,3995.3,0.8183]
[1734436733031,2.50243,3996.2,3993.7,3.0]
[1734436733032,0.55,3996.0,3995.0,0.8183]
[1734436733240,0.19544706,3995.9,3995.0,0.8183]
[1734436733460,0.85442792,3995.8,3995.0,0.8183]
[1734436733658,0.19544706,3995.9,3995.0,0.8183]
[1734436733861,0.85444288,3995.8,3995.0,0.8183]
[1734436734035,2.50272,3995.7,3995.0,0.8183]
[1734436734241,0.35526099,3995.6,3995.0,0.8183]
[1734436734633,3.73658252,3995.9,3995.0,0.8183]
[1734436734834,2.69801706,3995.9,3995.0,0.8183]
[1734436735034,0.19544706,3995.9,3995.0,0.8183]
[1734436736868,0.85455525,3995.8,3995.0,0.8183]
[1734436737574,2.69803706,3995.9,3995.0,0.8183]
[1734436737871,0.94366025,3995.8,3995.0,0.8183]
[1734436739693,5.9481,3995.6,3994.5,0.8183]
[1734436739895,6.00470156,3995.5,3994.5,0.8183]
[1734436740107,6.00470156,3995.5,3993.7,0.8183]
[1734436740108,2.50313,3995.0,3993.7,0.8183]
[1734436740257,0.250313,3994.9,3993.7,0.8183]
[1734436740456,2.50313,3995.0,3993.7,0.8183]
[1734436740686,1.03856546,3995.4,3993.7,0.8183]
[1734436740889,2.50313,3995.0,3993.7,0.8183]
[1734436741088,2.50328,3994.8,3993.7,0.8183]
[1734436741861,2.50328,3994.8,3993.7,3.8183]
[1734436742580,2.5034,3994.6,3993.7,0.8183]
[1734436742782,0.332818,3994.8,3993.7,0.8183]
[1734436742783,2.50364,3994.2,3993.7,0.8183]
[1734436742990,7.65337,3994.7,3993.7,0.8183]
[1734436742991,2.5035,3994.5,3993.7,0.8183]
[1734436743800,7.65332,3994.7,3993.7,0.8183]
[1734436743970,0.98496035,3994.6,3993.7,0.8183]
[1734436744325,2.50338,3994.6,3993.7,0.8183]
[1734436744597,2.50346,3994.5,3993.7,0.8183]
[1734436744798,7.65331,3994.7,3993.7,0.8183]
[1734436745357,0.85487032,3994.6,3993.7,0.8183]
[1734436745784,3.35826032,3994.6,3993.7,0.8183]
[1734436746007,0.98796438,3994.5,3993.7,0.8183]
[1734436747786,5.15,3994.7,3993.7,0.8183]
[1734436748134,2.50319,3994.9,3993.8,0.7642]
[1734436748420,0.85494904,3994.8,3993.8,0.7642]
[1734436749425,2.50325,3994.8,3993.8,0.7642]
[1734436749629,0.86918155,3994.7,3993.8,0.7642]
[1734436749992,2.50345,3994.5,3993.8,0.7642]
[1734436751726,7.05774701,3994.7,3993.8,0.7642]
[1734436751934,0.8548556,3994.6,3993.8,0.7642]
[1734436753989,6.01918155,3994.7,3993.8,0.7642]
[1734436754237,2.13809346,3994.6,3993.8,0.7642]
[1734436754388,7.05774701,3994.7,3993.8,0.7642]
[1734436754591,2.13815961,3994.6,3993.8,0.7642]
[1734436754911,7.05774701,3994.7,3993.8,0.7642]
[1734436755114,0.85518674,3994.6,3993.8,0.7642]
[1734436755424,6.01918155,3994.7,3993.8,0.7642]
[1734436755594,0.85535979,3994.6,3993.8,0.7642]
[1734436755794,6.01918155,3994.7,3993.8,0.7642]
[1734436755990,0.85524059,3994.6,3993.8,0.7642]
[1734436756198,5.15,3994.7,3993.8,0.7642]
[1734436757230,1.03856546,3994.9,3993.8,0.7642]
[1734436757529,0.85540755,3994.8,3993.8,0.7642]
[1734436757905,0.1893973,3994.7,3993.8,0.7642]
[1734436758103,0.85544805,3994.6,3993.8,0.7642]
[1734436758433,2.50368,3994.2,3993.5,0.818]
[1734436758796,2.50389,3993.8,3993.4,0.01395867]
[1734436759040,0.8554511,3993.7,3993.4,0.01395867]
[1734436759346,2.69342166,3993.6,3993.4,0.01395867]
[1734436759629,0.18940166,3993.6,3993.4,0.01395867]
[1734436760649,2.50406,3993.5,3993.4,0.01395867]
[1734436762825,2.50417,3993.4,3992.2,0.818]
[1734436764059,0.85414296,3993.3,3992.2,0.818]
[1734436764367,2.50417,3993.4,3992.2,0.818]
[1734436764368,1.03459784,3993.2,3992.2,0.818]
[1734436765644,5.15,3993.5,3992.4,2.34398981]
[1734436765845,5.15,3993.5,3992.6,0.818]
[1734436766130,5.15,3994.0,3992.6,0.818]
[1734436766464,2.50395,3993.7,3992.6,0.818]
[1734436766624,0.46380395,3993.6,3992.6,0.818]
[1734436767877,5.15,3994.0,3992.6,0.818]
[1734436768059,7.65376,3994.0,3992.6,0.818]
[1734436768652,2.50382,3993.9,3992.6,0.818]
[1734436769035,2.50391,3993.8,3992.6,0.818]
[1734436769282,0.250391,3993.7,3992.6,0.818]
[1734436770091,2.50376,3994.0,3992.6,0.818]
[1734436772500,5.15,3994.2,3992.8,2.34398981]
[1734436772788,3.41048701,3994.9,3993.4,0.7544]
[1734436772789,2.6927173,3994.7,3993.4,0.7544]
[1734436775298,3.35676253,3994.6,3993.4,0.7544]
[1734436775595,2.50344,3994.5,3993.4,0.7544]
[1734436776616,0.72087628,3994.6,3993.4,0.7544]
[1734436777314,0.85372964,3994.5,3993.4,0.7544]
[1734436777882,0.72087628,3994.6,3993.4,0.7544]
[1734436779314,0.85452302,3994.5,3993.4,0.7544]
[1734436779531,0.72087628,3994.6,3993.4,0.7544]
[1734436779532,0.79533621,3994.4,3993.4,0.7544]
[1734436782199,0.85498827,3994.3,3993.4,0.7544]
[1734436782407,1.03856546,3994.3,3993.4,0.7544]
[1734436782606,1.03856546,3994.0,3993.4,0.7544]
[1734436782839,2.13738879,3993.9,3993.4,0.7544]
[1734436783182,2.70562051,3993.8,3993.4,0.7544]
[1734436783358,0.56797043,3993.8,3993.4,0.7544]
[1734436783504,0.85512951,3993.7,3993.4,0.7544]
[1734436784231,1.03856546,3994.2,3993.4,0.7544]
[1734436784435,3.51648966,3994.1,3993.4,0.7544]
[1734436784654,0.85538075,3994.0,3993.4,0.7544]
[1734436784799,2.50612663,3994.4,3993.4,0.7544]
[1734436784800,1.03856546,3994.2,3993.4,0.7544]
[1734436785000,1.83390167,3994.4,3993.4,0.7544]
[1734436785232,3.06531191,3994.3,3993.4,0.7544]
[1734436785432,4.10387737,3994.3,3993.4,0.7544]
[1734436785635,0.85550078,3994.2,3993.4,0.7544]
[1734436786247,1.96512541,3994.3,3993.4,0.7544]
[1734436786409,0.85586443,3994.2,3993.4,0.7544]
[1734436786603,1.96512541,3994.3,3993.4,0.7544]
[1734436786604,0.92655995,3994.3,3993.4,0.7544]
[1734436787211,1.03856546,3994.4,3993.4,0.7544]
[1734436787212,0.85593039,3994.2,3993.4,0.7544]
[1734436787538,1.03856546,3994.4,3993.4,0.7544]
[1734436787736,2.14023357,3994.3,3993.4,0.7544]
[1734436787919,3.17879903,3994.3,3993.4,0.7544]
[1734436788255,0.85609343,3994.2,3993.4,0.7544]
[1734436788759,0.18946589,3994.1,3993.4,0.7544]
[1734436788908,1.03856546,3993.9,3993.4,0.7544]
[1734436789108,3.17881948,3993.8,3993.4,0.7544]
[1734436789360,3.17881948,3993.7,3993.4,0.7544]
[1734436789659,2.14025402,3993.6,3993.4,0.7544]
[1734436789868,1.17397538,3993.5,3993.4,0.7544]
[1734436790940,0.31788195,3993.5,3993.4,0.7544]
[1734436791159,0.85599587,3993.5,3993.4,0.7544]
[1734436791670,1.03856546,3993.7,3993.4,0.7544]
[1734436791671,2.14001254,3993.6,3993.4,0.7544]
[1734436791882,0.85599587,3993.5,3993.4,0.7544]
[1734436792027,1.03856546,3993.7,3993.4,0.7544]
[1734436792385,2.1400228,3993.6,3993.4,0.7544]
[1734436792676,0.31785883,3993.5,3993.4,0.7544]
[1734436792976,1.03856546,3993.7,3993.4,0.7544]
[1734436793180,0.85601248,3993.6,3993.4,0.7544]
[1734436793779,0.85601248,3993.6,3993.0,0.8018]
[1734436793947,3.90481137,3993.1,3991.8,0.8018]
[1734436794130,1.03502429,3992.7,3991.8,0.8018]
[1734436794332,1.03502429,3992.5,3991.8,0.8018]
[1734436794525,1.37140888,3992.6,3991.8,0.8018]
[1734436794780,1.03502429,3992.4,3991.8,0.8018]
[1734436794994,1.28332699,3992.7,3991.8,0.8018]
[1734436794995,1.03502429,3992.7,3991.8,0.8018]
[1734436795271,1.03502429,3993.0,3991.8,0.8018]
[1734436795630,1.89066083,3993.1,3991.8,0.8018]
[1734436795977,1.03502429,3992.9,3991.8,0.8018]
[1734436796181,3.17381972,3992.9,3991.8,0.8018]
[1734436796497,0.85563654,3992.8,3991.8,0.8018]
[1734436796767,1.03502429,3992.9,3991.8,0.8018]
[1734436796768,0.85563654,3992.7,3991.8,0.8018]
[1734436796968,1.03502429,3992.9,3991.8,0.8018]
[1734436797185,1.89022355,3992.9,3991.8,0.8018]
[1734436797358,1.28279889,3992.8,3991.8,0.8018]
[1734436797565,0.85519926,3992.7,3991.8,0.8018]
[1734436797757,1.03502429,3992.8,3991.8,0.8018]
[1734436798295,0.85511916,3992.7,3991.8,0.8018]
[1734436798586,1.03502429,3992.9,3991.8,0.8018]
[1734436798744,1.28261886,3992.8,3991.8,0.8018]
[1734436799086,0.85505753,3992.7,3991.8,0.8018]
[1734436799286,1.03502429,3992.8,3991.8,0.8018]
[1734436799484,1.28254397,3992.7,3991.8,0.8018]
[1734436799649,0.85501891,3992.6,3991.8,0.8018]
[1734436799847,1.03502429,3992.7,3991.8,0.8018]
[1734436800046,1.89003237,3992.7,3991.8,0.8018]
[1734436800245,0.85500808,3992.6,3991.8,0.8018]
[1734436800451,0.22356318,3992.5,3991.8,0.8018]
[1734436800680,0.85500808,3992.4,3991.8,0.8018]
[1734436800990,0.85505031,3992.3,3991.8,0.8018]
[1734436801290,1.25858747,3992.5,3991.8,0.8018]
[1734436801587,0.22356318,3992.5,3991.8,0.8018]
[1734436801759,1.3806237,3992.8,3991.8,0.8018]
[1734436802093,3.17247217,3992.7,3991.8,0.8018]
[1734436802311,2.13740343,3992.6,3991.8,0.8018]
[1734436802457,2.13740343,3992.5,3991.8,0.8018]
[1734436802652,0.85497915,3992.4,3991.8,0.8018]
[1734436802853,1.03502429,3992.5,3991.8,0.8018]
[1734436803059,1.03502429,3992.7,3991.8,0.8018]
[1734436803259,2.31742897,3992.6,3991.8,0.8018]
[1734436803458,2.1374097,3992.5,3991.8,0.8018]
[1734436803758,1.03502429,3992.6,3991.8,0.8018]
[1734436803759,0.85493645,3992.4,3991.8,0.8018]
[1734436803976,1.03502429,3992.4,3991.8,0.8018]
[1734436804274,3.17236241,3992.3,3991.8,0.8018]
[1734436804475,2.61065652,3992.2,3991.8,0.8018]
[1734436804682,0.4733184,3992.2,3991.8,0.8018]
[1734436804884,1.03502429,3992.3,3991.8,0.8018]
[1734436805121,0.768,3993.1,3992.0,2.34398981]
[1734436805122,1.03502429,3992.8,3992.0,2.34398981]
[1734436805395,1.03502429,3993.0,3992.2,0.8018]
[1734436805607,7.73527359,3993.6,3992.2,0.8018]
[1734436805608,1.03502429,3993.1,3992.4,2.34398981]
[1734436805842,1.03502429,3993.3,3992.5,3.0]
[1734436806112,1.28253244,3993.2,3992.6,0.8018]
[1734436806262,1.03502429,3993.3,3992.6,0.8018]
[1734436806462,1.03502429,3993.7,3992.9,3.8018]
[1734436806656,1.03502429,3993.9,3993.0,0.8018]
[1734436806861,1.28264125,3993.8,3993.0,0.8018]
[1734436807093,2.35781258,3993.9,3993.0,0.8018]
[1734436807094,0.46769413,3993.9,3993.0,0.8018]
[1734436807273,0.85510447,3993.8,3993.0,0.8018]
[1734436807557,1.50271842,3993.9,3993.0,0.8018]
[1734436807872,1.03502429,3993.7,3993.0,0.8018]
[1734436808085,0.306354,3993.6,3993.0,0.8018]
[1734436808559,1.50271842,3993.9,3993.0,0.8018]
[1734436808760,0.85505441,3993.8,3993.0,0.8018]
[1734436808961,0.46769413,3993.9,3993.0,0.8018]
[1734436809199,1.03502429,3994.2,3993.3,3.8018]
[1734436809564,0.85510026,3994.1,3993.3,3.8018]
[1734436809775,1.03502429,3994.3,3993.3,3.8018]
[1734436810005,1.54223796,3994.2,3993.3,3.8018]
[1734436810222,1.03502429,3994.0,3993.3,0.8018]
[1734436810367,3.0854985,3994.0,3992.2,0.8018]
[1734436810567,1.03502429,3993.8,3992.5,0.8018]
[1734436810786,2.1376691,3993.7,3992.5,3.8018]
[1734436810987,1.03502429,3993.8,3992.5,3.8018]
[1734436811298,1.88998482,3993.9,3992.9,3.8018]
[1734436811486,1.34145869,3994.0,3992.9,3.8018]
[1734436811690,1.34223752,3993.9,3992.9,3.8018]
[1734436811903,0.48718106,3993.9,3992.9,3.8018]
[1734436812303,1.03502429,3994.0,3992.0,2.34398981]
[1734436812304,1.03502429,3994.1,3993.2,2.34398981]
[1734436812602,1.56082156,3994.2,3993.2,2.34398981]
[1734436812603,0.85505679,3994.0,3993.3,3.8018]
[1734436812759,1.03502429,3994.2,3993.3,3.8018]
[1734436812964,1.28258802,3994.1,3993.3,3.8018]
[1734436813175,1.03502429,3994.2,3993.3,3.8018]
[1734436813412,1.54213859,3994.1,3993.3,3.8018]
[1734436813738,0.25958458,3994.1,3993.3,3.8018]
[1734436813923,1.03502429,3994.3,3993.3,3.8018]
[1734436813924,1.03502429,3994.3,3993.3,0.8018]
[1734436814126,1.03502429,3994.1,3993.3,0.8018]
[1734436814330,1.2824959,3994.0,3993.3,0.8018]
[1734436814531,2.13750407,3993.9,3993.3,0.8018]
[1734436814728,1.03502429,3994.1,3993.3,0.8018]
[1734436814902,1.03502429,3993.9,3993.3,0.8018]
[1734436815100,3.17252396,3993.8,3993.3,0.8018]
[1734436815400,0.85499987,3993.7,3993.3,0.8018]
[1734436815600,1.03502429,3993.9,3993.3,0.8018]
[1734436815932,1.28240659,3993.8,3993.3,0.8018]
[1734436816239,1.19814446,3993.7,3993.3,0.8018]
[1734436816440,0.34319607,3993.7,3993.0,0.8018]
[1734436816632,2.23313292,3993.7,3993.0,0.8018]
[1734436816828,3.17230871,3993.6,3992.1,0.8018]
[1734436817031,1.03502429,3993.4,3992.1,0.8018]
[1734436817327,3.64562174,3993.3,3992.1,0.8018]
[1734436817643,0.85491256,3993.2,3992.1,0.8018]
[1734436817938,0.85491256,3993.2,3992.1,3.8018]
[1734436818140,0.47331303,3993.3,3992.1,3.8018]
[1734436818502,1.03502429,3993.5,3992.1,3.8018]
[1734436818703,1.28225847,3993.4,3992.1,3.8018]
[1734436819044,0.85483898,3993.3,3992.2,0.8018]
[1734436819353,1.03502429,3993.5,3992.2,0.8018]
[1734436819499,1.28232977,3993.4,3992.2,0.8018]
[1734436819699,1.1721041,3993.3,3992.2,0.8018]
[1734436819940,0.31722406,3993.3,3992.2,0.8018]
[1734436820257,1.03502429,3993.6,3992.2,0.8018]
[1734436820449,3.17246642,3993.6,3992.4,2.34398981]
[1734436820615,5.15,3993.7,3992.9,3.0]
[1734436820806,1.29460887,3994.0,3993.0,0.8018]
[1734436821038,1.03502429,3993.8,3993.0,0.8018]
[1734436821278,1.2825504,3993.7,3993.0,0.8018]
[1734436821587,0.8550336,3993.6,3993.0,0.8018]
[1734436821794,1.03502429,3993.7,3993.0,0.8018]
[1734436821937,0.85502609,3993.6,3993.0,0.8018]
[1734436822137,0.26905934,3993.6,3993.0,0.8018]
[1734436822404,0.26905934,3993.6,3992.1,0.7666]
[1734436822405,0.85503756,3993.5,3992.1,0.7666]
[1734436822605,1.03502429,3993.4,3992.1,0.7666]
[1734436822894,0.85503756,3993.3,3992.1,0.7666]
[1734436823103,1.03502429,3993.4,3992.1,0.7666]
[1734436823386,3.45902921,3993.3,3992.1,0.7666]
[1734436823596,2.1375144,3993.2,3992.1,0.7666]
[1734436823881,3.17253869,3993.2,3992.1,0.7666]
[1734436824082,0.85499454,3993.1,3992.1,0.7666]
[1734436824284,1.32151481,3993.3,3992.1,0.7666]
[1734436824584,3.4607751,3993.2,3992.1,0.7666]
[1734436824883,3.4607751,3993.2,3992.1,3.7666]
[1734436824884,2.13751717,3993.1,3992.1,3.7666]
[1734436825042,2.13751717,3993.1,3992.1,0.7666]
[1734436825247,2.50442,3993.0,3992.1,0.7666]
[1734436825444,3.17196041,3992.9,3992.1,0.7666]
[1734436825743,0.85477917,3992.8,3991.5,0.7666]
[1734436825944,1.03502429,3993.0,3991.8,3.7666]
[1734436826182,1.28220489,3992.9,3991.8,3.7666]
[1734436826386,1.03502429,3993.1,3991.8,3.7666]
[1734436826554,1.28230425,3993.0,3991.9,0.7666]
[1734436826887,0.28823364,3993.2,3992.1,2.34398981]
[1734436826888,1.32325793,3993.2,3992.1,2.34398981]
[1734436827095,1.32325793,3993.2,3992.2,3.7666]
[1734436827096,2.13728081,3993.1,3992.2,3.7666]
[1734436827380,0.7701,3993.5,3991.1,0.26811941]
[1734436827381,1.03502429,3993.6,3992.6,3.0]
[1734436827584,1.03502429,3993.7,3992.7,0.7666]
[1734436827773,2.13767764,3993.7,3992.7,0.7666]
[1734436828087,1.03502429,3993.9,3992.7,0.7666]
[1734436828382,0.85509575,3993.8,3992.7,0.7666]
[1734436828584,0.98269413,3993.9,3992.7,0.7666]
[1734436829590,3.30036149,3993.9,3992.7,0.7666]
[1734436829797,2.13772645,3993.8,3992.7,0.7666]
[1734436829943,0.85508338,3993.7,3992.7,0.7666]
[1734436830143,0.28728018,3993.6,3992.7,0.7666]
[1734436830383,1.32230447,3993.6,3992.7,0.7666]
[1734436830588,0.85499753,3993.5,3992.7,0.7666]
[1734436830785,2.54351569,3993.9,3992.7,0.7666]
[1734436830786,2.01771842,3993.9,3992.7,0.7666]
[1734436830985,2.13754453,3993.8,3992.7,0.7666]
[1734436831142,0.85502036,3993.7,3992.7,0.7666]
[1734436831485,0.7701,3993.7,3992.7,0.7666]
[1734436831641,1.03502429,3993.6,3992.7,0.7666]
[1734436831981,2.31755125,3993.6,3992.7,0.7666]
[1734436832212,0.8550287,3993.5,3992.7,0.7666]
[1734436832346,0.7701,3993.7,3992.7,0.7666]
[1734436832347,1.03502429,3993.7,3992.7,0.7666]
[1734436832680,0.41501484,3993.7,3992.7,0.7666]
[1734436833046,3.58683103,3993.7,3992.7,0.7666]
[1734436833246,0.85471196,3993.6,3992.7,0.7666]
[1734436833443,1.45003913,3993.7,3992.7,0.7666]
[1734436833669,0.85478895,3993.6,3992.7,0.7666]
[1734436833838,1.39678417,3993.6,3992.7,0.7666]
[1734436834039,0.54199522,3993.6,3992.7,0.7666]
[1734436834282,1.60663274,3993.8,3992.7,0.7666]
[1734436834493,2.13720062,3993.7,3992.7,0.7666]
[1734436834670,0.8548644,3993.6,3992.7,0.7666]
[1734436834849,1.60663274,3993.8,3992.7,0.7666]
[1734436835182,0.85485477,3993.7,3992.7,0.7666]
[1734436835338,0.24614875,3993.6,3992.7,0.7666]
[1734436836288,1.03502429,3993.8,3992.7,0.7666]
[1734436836443,0.85485339,3993.7,3992.7,0.7666]
[1734436836643,1.03502429,3993.9,3992.7,0.7666]
[1734436837879,0.85495287,3994.0,3991.7,1.54656831]
[1734436837880,0.85495287,3993.8,3992.9,2.34398981]
[1734436838077,1.03502429,3994.1,3993.1,0.7525]
[1734436838277,2.05765397,3994.0,3993.1,0.7525]
[1734436838492,0.77458459,3994.0,3993.1,0.7525]
[1734436838689,0.85534343,3993.9,3993.1,0.7525]
[1734436838862,1.80960888,3994.0,3993.1,0.7525]
[1734436839065,0.8553582,3993.9,3992.4,0.7525]
[1734436839309,0.8553582,3993.9,3992.5,0.7525]
[1734436839310,1.03502429,3993.7,3992.5,0.7525]
[1734436839471,2.13864425,3993.7,3992.5,0.7525]
[1734436839793,0.8553582,3993.6,3992.5,0.7525]
[1734436840009,2.088721,3993.8,3992.5,0.7525]
[1734436840319,2.13901053,3993.7,3992.5,0.7525]
[1734436840462,0.57885531,3993.6,3992.5,0.7525]
[1734436840663,0.85572577,3993.5,3992.5,0.7525]
[1734436841287,0.57885531,3993.6,3992.5,0.7525]
[1734436841920,1.03502429,3993.7,3992.7,2.34398981]
[1734436842076,0.26649671,3993.8,3992.7,2.34398981]
[1734436842077,0.85578483,3993.6,3992.9,0.7525]
[1734436842288,0.26649671,3993.8,3992.9,0.7525]
[1734436842530,0.26649671,3993.8,3992.8,3.0]
[1734436842531,0.26649671,3993.8,3993.2,3.7525]
[1734436842818,1.80960888,3994.0,3993.2,3.7525]
[1734436843030,0.8558823,3993.9,3993.2,3.7525]
[1734436843742,1.03502429,3994.2,3993.6,0.7525]
[1734436843889,1.03502429,3994.3,3993.6,3.7525]
[1734436844083,0.85595421,3994.2,3993.6,3.7525]
[1734436844409,1.03502429,3994.5,3993.6,3.7525]
[1734436844631,3.43439864,3994.4,3993.6,3.7525]
[1734436844923,2.13978977,3994.3,3993.6,3.7525]
[1734436845130,1.29460887,3994.4,3993.6,3.7525]
[1734436845131,0.85591591,3994.2,3993.6,3.7525]
[1734436845280,1.29460887,3994.4,3993.6,3.7525]
[1734436845479,2.13988761,3994.3,3993.6,3.7525]
[1734436845780,3.1749119,3994.3,3993.6,3.7525]
[1734436845980,3.1749119,3994.2,3993.6,0.7525]
[1734436846215,3.1749119,3994.1,3993.6,0.7525]
[1734436846385,2.06035336,3994.3,3993.6,0.7525]
[1734436846386,0.85595504,3994.0,3993.6,0.7525]
[1734436846589,1.03502429,3994.1,3993.6,0.7525]
[1734436846935,1.37052051,3994.1,3993.6,0.7525]
[1734436847260,3.17500335,3994.0,3993.6,0.7525]
[1734436847432,1.03502429,3993.8,3993.6,0.7525]
[1734436847582,1.89103187,3993.8,3993.6,0.7525]
[1734436847776,1.03502429,3993.9,3993.6,0.7525]
[1734436847976,1.03502429,3994.0,3993.6,0.7525]
[1734436848179,1.89121869,3994.0,3993.6,0.7525]
[1734436848390,0.8561944,3993.9,3993.6,0.7525]
[1734436848592,2.14047315,3993.9,3993.6,0.7525]
[1734436848818,2.14066861,3993.8,3993.6,0.7525]
[1734436849017,1.03502429,3993.9,3993.6,0.7525]
[1734436849018,0.8561944,3993.7,3993.6,0.7525]
[1734436849528,1.89121869,3993.8,3993.6,0.7525]
[1734436849823,0.8561944,3993.7,3993.6,0.7525]
[1734436850530,3.17643359,3993.7,3993.6,0.7525]
[1734436850899,1.89121869,3993.7,3993.6,0.7525]
[1734436851113,3.17643359,3993.7,3993.6,0.7525]
[1734436853233,2.1414093,3993.7,3993.6,0.7525]
[1734436853414,2.77545553,3993.7,3993.6,0.7525]
[1734436854102,3.17774544,3993.7,3993.6,0.7525]
[1734436854432,1.03633614,3993.9,3993.6,0.7525]
[1734436854725,2.14239002,3993.8,3993.6,0.7525]
[1734436854933,1.03633614,3994.0,3993.6,0.7525]
[1734436855086,2.14243772,3993.9,3993.6,0.7525]
[1734436855289,0.85697509,3993.8,3993.6,0.7525]
[1734436855533,0.85697509,3993.7,3993.6,0.7525]
[1734436855827,2.14259853,3993.7,3993.6,0.7525]
[1734436856196,7.73770159,3994.4,3993.6,0.7525]
[1734436856197,1.71383578,3994.3,3993.6,0.7525]
[1734436856517,0.17138358,3994.2,3993.6,0.7525]
[1734436856725,7.65332,3994.7,3993.6,0.7525]
[1734436856901,0.8246,3994.6,3993.2,0.7696]
[1734436857102,1.03669811,3993.9,3993.2,0.7696]
[1734436857333,0.85721975,3993.8,3993.2,0.7696]
[1734436857494,0.85721975,3993.7,3993.2,0.7696]
[1734436857689,1.03669811,3993.8,3993.2,0.7696]
[1734436857894,0.85723312,3993.7,3993.2,0.7696]
[1734436858131,1.03669811,3993.9,3993.2,0.7696]
[1734436858330,2.1427405,3993.8,3993.2,0.7696]
[1734436858535,1.03669811,3993.9,3993.2,0.7696]
[1734436858733,0.85705382,3993.8,3993.2,0.7696]
[1734436859199,1.03669811,3993.9,3993.2,0.7696]
[1734436859535,0.85703516,3993.8,3993.2,0.7696]
[1734436860033,0.85703516,3993.7,3993.2,0.7696]
[1734436860193,0.18937333,3993.7,3993.2,0.7696]
[1734436860392,1.03669811,3993.8,3993.2,0.7696]
[1734436860393,0.85698235,3993.6,3993.2,0.7696]
[1734436860590,1.03669811,3993.7,3993.2,0.7696]
[1734436860838,3.17903299,3993.6,3993.2,0.7696]
[1734436861039,3.17903299,3993.6,3992.3,3.0]
[1734436861040,3.17903299,3993.5,3992.4,0.7991]
[1734436861343,1.03669811,3993.3,3992.4,0.7991]
[1734436861636,3.17914602,3993.2,3992.4,0.7991]
[1734436861831,0.47340802,3993.3,3992.4,0.7991]
[1734436861832,3.17914602,3993.1,3992.4,0.7991]